bitfinex/quotes_SOLUSD_20250210
["timestamp","ask_amount","ask_price","bid_price","bid_amount"]
[1739166646296,12.95896893,203.8,203.78,0.063]
[1739166648909,13.87917456,203.79,203.78,0.063]
[1739166649485,12.95896893,203.79,203.78,0.063]
[1739166650599,17.88456893,203.79,203.78,0.063]
[1739166651493,19.1112812,203.79,203.78,0.063]
[1739166652707,21.0,203.77,203.76,0.063]
[1739166652906,38.91951502,203.77,203.76,0.063]
[1739166653611,37.91951502,203.77,203.76,0.063]
[1739166654414,33.87951502,203.77,203.76,0.063]
[1739166654808,37.80541502,203.77,203.76,0.063]
[1739166655192,38.80541502,203.77,203.76,0.063]
[1739166657017,37.80541502,203.77,203.76,0.063]
[1739166659513,38.80541502,203.77,203.76,0.063]
[1739166659713,37.80541502,203.77,203.76,0.063]
[1739166660526,36.88486893,203.77,203.76,0.063]
[1739166661097,12.95896893,203.81,203.76,0.063]
[1739166662205,20.0,203.78,203.76,1.5721]
[1739166663506,12.95896893,203.81,203.76,5.4982]
[1739166663706,12.95896893,203.82,203.76,5.4982]
[1739166663909,20.0,203.81,203.76,1.5721]
[1739166664208,20.0,203.81,203.77,12.95896893]
[1739166665027,36.88376893,203.84,203.77,12.95896893]
[1739166665924,23.9248,203.84,203.76,1.5721]
[1739166666115,12.95896893,203.79,203.76,1.5721]
[1739166666318,12.95896893,203.78,203.76,1.5721]
[1739166666714,12.95896893,203.79,203.76,1.5721]
[1739166667338,12.95896893,203.8,203.76,1.5721]
[1739166667522,65.9548,203.84,203.8,13.41184853]
[1739166667523,0.03,203.84,203.8,13.41184853]
[1739166667727,0.03,203.86,203.83,34.51831746]
[1739166667913,0.03,203.86,203.85,13.41184853]
[1739166668530,0.03,203.86,203.85,12.95896893]
[1739166668729,0.03,203.86,203.83,12.0722]
[1739166668925,0.03,203.86,203.83,25.03116893]
[1739166669125,0.03,203.86,203.85,12.95896893]
[1739166670422,0.03,203.86,203.83,25.03116893]
[1739166672137,0.03,203.86,203.85,30.29521746]
[1739166672713,0.03,203.86,203.85,12.95896893]
[1739166673212,0.03,203.86,203.85,26.37081746]
[1739166673650,0.03,203.86,203.84,3.9245]
[1739166673948,0.03,203.86,203.84,16.88346893]
[1739166675160,0.03,203.86,203.85,26.37081746]
[1739166676141,0.03,203.86,203.85,30.29521746]
[1739166676324,12.98896893,203.96,203.85,30.29521746]
[1739166676325,20.0,203.94,203.85,40.10631746]
[1739166676529,20.0,203.94,203.92,12.95896893]
[1739166676937,0.03,203.96,203.91,13.41184853]
[1739166677143,12.98896893,203.96,203.89,12.95896893]
[1739166677348,12.98896893,203.96,203.87,12.95896893]
[1739166677643,20.0,203.93,203.87,12.95896893]
[1739166677846,20.0,203.93,203.86,12.95896893]
[1739166678450,12.95896893,203.94,203.87,13.41184853]
[1739166678645,12.95896893,203.94,203.87,17.33584853]
[1739166678947,12.95896893,203.92,203.85,16.88326893]
[1739166679121,12.95896893,203.92,203.86,13.41184853]
[1739166679321,12.95896893,203.93,203.86,13.41184853]
[1739166679546,12.95896893,203.92,203.86,13.41184853]
[1739166679750,12.95896893,203.91,203.84,12.95896893]
[1739166679926,12.95896893,203.91,203.83,12.0722]
[1739166679927,12.95896893,203.88,203.86,0.063]
[1739166681740,12.95896893,203.87,203.86,0.063]
[1739166684935,12.95896893,203.89,203.86,0.063]
[1739166685140,12.95896893,203.91,203.86,0.063]
[1739166685966,3.9231,203.92,203.86,0.063]
[1739166685967,12.95896893,203.87,203.86,0.063]
[1739166686254,12.95896893,203.88,203.86,0.063]
[1739166686423,12.95896893,203.87,203.86,0.063]
[1739166688064,16.88296893,203.87,203.86,0.063]
[1739166689173,16.88276893,203.89,203.86,0.063]
[1739166689362,12.95896893,203.89,203.86,0.063]
[1739166691779,16.88256893,203.89,203.86,0.063]
[1739166692965,12.95896893,203.89,203.86,0.063]
[1739166693547,16.88266893,203.89,203.86,0.063]
[1739166695272,12.95896893,203.87,203.86,0.063]
[1739166696269,16.88296893,203.87,203.86,0.063]
[1739166699479,20.0,203.84,203.76,0.063]
[1739166699681,20.0,203.77,203.76,0.063]
[1739166700273,20.0,203.78,203.76,0.063]
[1739166700461,20.0,203.78,203.76,13.02196893]
[1739166700978,20.0,203.79,203.76,0.063]
[1739166701145,20.0,203.78,203.76,0.063]
[1739166701876,16.88456893,203.79,203.76,0.063]
[1739166702466,36.88436893,203.81,203.76,0.063]
[1739166702644,32.95896893,203.81,203.76,0.063]
[1739166703283,20.0,203.8,203.76,0.063]
[1739166703451,20.0,203.8,203.76,13.02196893]
[1739166703651,20.0,203.8,203.76,0.063]
[1739166703880,20.0,203.78,203.76,0.063]
[1739166706277,20.0,203.77,203.76,0.063]
[1739166707486,3.9255,203.8,203.76,0.063]
[1739166708656,20.0,203.77,203.76,0.063]
[1739166710784,23.9259,203.77,203.76,0.063]
[1739166710978,3.9238,203.88,203.78,13.41184853]
[1739166711192,12.98896893,203.89,203.81,12.95896893]
[1739166711486,16.91266893,203.89,203.81,12.95896893]
[1739166712179,20.0,203.86,203.81,12.95896893]
[1739166713385,20.0,203.86,203.82,1.6514]
[1739166713687,0.03,203.89,203.83,12.95896893]
[1739166713897,0.03,203.89,203.87,12.95896893]
[1739166716405,0.03,203.89,203.88,15.06324853]
[1739166718674,0.03,203.94,203.89,4.9236]
[1739166718873,0.03,203.94,203.92,12.95896893]
[1739166719192,0.03,203.94,203.93,12.95896893]
[1739166720379,0.03,203.94,203.93,27.37081746]
[1739166720586,0.03,203.96,203.95,30.29331746]
[1739166720888,0.03,203.96,203.95,31.54429746]
[1739166721069,0.03,204.03,203.98,13.41184853]
[1739166721270,0.03,204.03,204.02,26.37081746]
[1739166722294,0.03,204.05,204.03,19.75154853]
[1739166722506,0.03,204.05,204.04,26.37081746]
[1739166723589,0.03,204.05,204.04,26.49630746]
[1739166723800,0.03,204.07,204.06,0.12549]
[1739166723971,0.03,204.07,204.06,26.62179746]
[1739166724166,0.03,204.07,204.06,26.49630746]
[1739166724506,0.03,204.08,204.07,1.0]
[1739166724799,0.03,204.1,204.09,1.0]
[1739166725004,0.03,204.12,204.09,28.53463786]
[1739166725169,0.03,204.12,204.11,33.96149746]
[1739166725717,0.03,204.15,204.14,27.62179746]
[1739166726410,0.03,204.15,204.14,27.37081746]
[1739166726713,0.03,204.15,204.14,26.49630746]
[1739166726896,0.03,204.15,204.14,27.49630746]
[1739166727213,0.03,204.15,204.14,27.62179746]
[1739166727577,20.0,204.23,204.14,26.49630746]
[1739166727809,20.0,204.22,204.17,12.95896893]
[1739166728117,20.0,204.22,204.16,12.95896893]
[1739166728319,12.95896893,204.23,204.16,12.95896893]
[1739166728528,20.0,204.19,204.14,12.95896893]
[1739166728813,20.0,204.19,204.11,6.3397]
[1739166728814,20.0,204.19,204.15,12.95896893]
[1739166729531,20.0,204.2,204.16,12.95896893]
[1739166729806,20.0,204.2,204.18,12.95896893]
[1739166730006,20.0,204.22,204.18,12.95896893]
[1739166730179,20.0,204.22,204.13,13.41184853]
[1739166730180,20.0,204.22,204.2,12.95896893]
[1739166730380,12.95896893,204.29,204.21,12.95896893]
[1739166730675,16.87506893,204.29,204.21,12.95896893]
[1739166731094,20.0,204.26,204.22,12.95896893]
[1739166731302,20.0,204.26,204.21,12.95896893]
[1739166731604,20.0,204.26,204.17,17.33004853]
[1739166731605,20.0,204.26,204.22,20.7383409]
[1739166731898,6.563,204.31,204.17,17.33004853]
[1739166731899,20.7383409,204.31,204.24,20.7383409]
[1739166732107,20.7383409,204.32,204.25,20.7383409]
[1739166732279,3.9145,204.37,204.25,13.41184853]
[1739166732486,20.7683409,204.36,204.25,13.41184853]
[1739166732703,20.0,204.33,204.25,13.41184853]
[1739166732908,24.6830409,204.36,204.28,20.7383409]
[1739166733506,20.7383409,204.35,204.28,20.7383409]
[1739166733708,20.0,204.32,204.28,20.7383409]
[1739166733891,20.0,204.31,204.26,20.7383409]
[1739166734091,20.0,204.31,204.25,20.7383409]
[1739166734285,20.7383409,204.35,204.27,20.7383409]
[1739166734506,20.0,204.32,204.27,20.7383409]
[1739166734815,0.03,204.36,204.29,20.7383409]
[1739166735307,0.03,204.36,204.3,20.7383409]
[1739166735308,20.0,204.34,204.3,20.7383409]
[1739166735611,20.0,204.33,204.28,20.7383409]
[1739166736610,24.6830409,204.36,204.29,20.7383409]
[1739166736785,20.0,204.33,204.28,20.7383409]
[1739166738106,20.7383409,204.34,204.26,20.7383409]
[1739166738425,20.7383409,204.35,204.28,20.7383409]
[1739166738914,20.7383409,204.35,204.26,20.7383409]
[1739166738915,20.7383409,204.33,204.26,20.7383409]
[1739166739210,20.0,204.33,204.29,20.7383409]
[1739166739387,20.0,204.33,204.26,20.7383409]
[1739166739583,20.7383409,204.32,204.25,20.7383409]
[1739166740302,20.7383409,204.33,204.25,20.7383409]
[1739166740502,20.7383409,204.32,204.25,20.7383409]
[1739166740914,20.7383409,204.32,204.24,24.6552409]
[1739166741113,20.7383409,204.32,204.25,20.7383409]
[1739166741827,20.7383409,204.31,204.23,27.3510409]
[1739166742002,20.7383409,204.31,204.23,31.2681409]
[1739166742419,20.7383409,204.31,204.23,10.5298]
[1739166742624,0.03,204.33,204.28,20.7383409]
[1739166743423,0.03,204.33,204.27,20.7383409]
[1739166743622,20.7683409,204.33,204.26,20.7383409]
[1739166744121,0.03,204.33,204.26,20.7383409]
[1739166744499,20.7683409,204.33,204.25,20.7383409]
[1739166744719,0.03,204.33,204.27,20.7383409]
[1739166745411,0.03,204.33,204.28,20.7383409]
[1739166745923,0.03,204.33,204.28,24.6544409]
[1739166746833,0.03,204.33,204.29,13.41184853]
[1739166747126,0.03,204.33,204.28,20.7383409]
[1739166747296,0.03,204.33,204.27,20.7383409]
[1739166747500,0.03,204.33,204.26,24.6548409]
[1739166747700,0.03,204.33,204.27,20.7383409]
[1739166747915,0.03,204.33,204.26,24.6548409]
[1739166748625,0.03,204.33,204.28,20.7383409]
[1739166750819,0.03,204.33,204.27,20.7383409]
[1739166751021,20.7383409,204.32,204.25,20.7383409]
[1739166751330,20.7683409,204.33,204.25,20.7383409]
[1739166751704,20.7383409,204.29,204.22,20.7383409]
[1739166752217,20.7383409,204.3,204.22,20.7383409]
[1739166752822,20.7383409,204.3,204.23,20.7383409]
[1739166753019,20.7683409,204.33,204.26,20.7383409]
[1739166753224,0.03,204.33,204.27,20.7383409]
[1739166753621,0.03,204.33,204.29,12.95353928]
[1739166754342,0.03,204.33,204.28,12.95353928]
[1739166754513,0.03,204.33,204.27,12.95353928]
[1739166754707,0.03,204.33,204.24,14.41184853]
[1739166754915,12.98353928,204.33,204.26,12.95353928]
[1739166755334,0.03,204.33,204.27,12.95353928]
[1739166755510,0.03,204.33,204.28,12.95353928]
[1739166756229,0.03,204.33,204.27,12.95353928]
[1739166756612,12.98353928,204.33,204.26,12.95353928]
[1739166757014,16.89873928,204.33,204.26,12.95353928]
[1739166757637,16.89873928,204.33,204.25,12.95353928]
[1739166757815,16.89873928,204.33,204.25,16.87023928]
[1739166758434,16.89873928,204.33,204.25,12.95353928]
[1739166759225,12.98353928,204.33,204.25,16.87023928]
[1739166759523,12.98353928,204.33,204.26,12.95353928]
[1739166760136,12.98353928,204.33,204.23,1.0]
[1739166760137,12.95353928,204.3,204.23,12.95353928]
[1739166760329,12.95353928,204.32,204.24,12.95353928]
[1739166760712,12.95353928,204.31,204.24,12.95353928]
[1739166760917,12.95353928,204.3,204.23,12.95353928]
[1739166761120,12.95353928,204.31,204.24,12.95353928]
[1739166761417,3.9452,204.33,204.25,12.95353928]
[1739166761418,12.95353928,204.32,204.25,12.95353928]
[1739166761624,12.98353928,204.33,204.26,12.95353928]
[1739166761821,0.03,204.33,204.27,12.95353928]
[1739166762425,0.03,204.33,204.28,12.95353928]
[1739166762623,0.03,204.33,204.29,12.95353928]
[1739166762934,0.03,204.33,204.31,12.95353928]
[1739166763326,0.03,204.33,204.31,16.86903928]
[1739166764820,0.03,204.33,204.3,12.95353928]
[1739166765311,0.03,204.33,204.3,16.86923928]
[1739166765932,0.03,204.33,204.3,12.95353928]
[1739166766433,0.03,204.33,204.3,16.86923928]
[1739166766846,0.03,204.33,204.31,12.95353928]
[1739166767137,0.03,204.33,204.32,12.95353928]
[1739166767712,0.03,204.33,204.32,26.36538781]
[1739166769429,0.03,204.33,204.32,33.12046781]
[1739166770227,0.03,204.33,204.32,32.86948781]
[1739166770639,0.03,204.33,204.32,33.12046781]
[1739166770818,0.03,204.33,204.32,32.86948781]
[1739166771826,0.03,204.33,204.32,33.12046781]
[1739166772035,0.159,204.46,204.32,33.12046781]
[1739166772036,0.159,204.46,204.44,13.41184853]
[1739166772240,0.159,204.46,204.45,26.36538781]
[1739166772420,0.159,204.46,204.45,27.61636781]
[1739166772743,0.159,204.46,204.45,26.36538781]
[1739166774238,0.159,204.46,204.45,12.95353928]
[1739166774540,0.159,204.46,204.44,12.95353928]
[1739166774921,0.159,204.46,204.45,12.95353928]
[1739166777146,0.159,204.46,204.45,30.27828781]
[1739166779050,0.159,204.46,204.45,12.95353928]
[1739166779427,0.159,204.46,204.44,12.95353928]
[1739166779848,0.159,204.46,204.42,12.95353928]
[1739166780042,0.159,204.46,204.4,12.95353928]
[1739166780239,6.6998,204.46,204.4,12.95353928]
[1739166780444,23.56603928,204.46,204.38,12.95353928]
[1739166780639,23.56603928,204.46,204.39,12.95353928]
[1739166780947,23.56603928,204.46,204.37,12.95353928]
[1739166780948,16.86673928,204.44,204.37,12.95353928]
[1739166781151,6.6998,204.46,204.4,12.95353928]
[1739166781355,6.6998,204.46,204.41,12.95353928]
[1739166781829,10.6125,204.46,204.4,12.95353928]
[1739166782029,0.159,204.46,204.41,12.95353928]
[1739166782341,0.159,204.46,204.44,12.95353928]
[1739166782745,0.159,204.46,204.45,12.95353928]
[1739166784038,0.159,204.46,204.45,26.36538781]
[1739166785240,0.159,204.46,204.45,27.61636781]
[1739166785449,0.159,204.46,204.45,28.61636781]
[1739166785638,0.159,204.46,204.45,34.34213774]
[1739166785834,0.159,204.46,204.45,36.34213774]
[1739166786039,0.159,204.46,204.45,35.34213774]
[1739166786751,0.189,204.46,204.45,35.34213774]
[1739166787258,0.189,204.46,204.45,36.34213774]
[1739166787656,0.03,204.54,204.53,14.66282853]
[1739166787956,0.03,204.54,204.53,35.34213774]
[1739166789165,0.169,204.66,204.56,0.25098]
[1739166789369,0.169,204.66,204.62,20.67930921]
[1739166790135,0.169,204.66,204.57,13.41184853]
[1739166790136,0.169,204.66,204.63,20.67930921]
[1739166791852,0.169,204.66,204.57,18.32244853]
[1739166791853,0.169,204.66,204.62,20.67930921]
[1739166793664,0.169,204.66,204.63,20.67930921]
[1739166793962,0.169,204.66,204.65,20.67930921]
[1739166794158,0.169,204.66,204.65,34.09115774]
[1739166794369,0.169,204.66,204.64,20.67930921]
[1739166795757,0.169,204.66,204.65,20.67930921]
[1739166796260,0.169,204.66,204.65,34.09115774]
[1739166798446,0.199,204.66,204.65,35.34213774]
[1739166798655,0.199,204.66,204.65,34.09115774]
[1739166799154,0.199,204.66,204.65,36.34213774]
[1739166799770,0.03,204.67,204.66,17.57172853]
[1739166799950,3.9057,204.83,204.71,3.9079]
[1739166800146,20.0,204.81,204.79,20.67930921]
[1739166800368,3.9053,204.85,204.8,20.67930921]
[1739166800559,20.67930921,204.87,204.81,20.67930921]
[1739166800560,3.9049,204.87,204.81,20.67930921]
[1739166801158,24.58420921,204.87,204.8,20.67930921]
[1739166801370,20.67930921,204.85,204.79,20.67930921]
[1739166801669,20.0,204.83,204.8,20.67930921]
[1739166801852,3.9052,204.86,204.8,20.67930921]
[1739166802055,24.58450921,204.86,204.79,20.67930921]
[1739166802277,20.67930921,204.84,204.77,20.67930921]
[1739166803051,20.0,204.85,204.8,20.67930921]
[1739166803257,20.0,204.84,204.81,20.67930921]
[1739166803449,20.0,204.83,204.8,20.67930921]
[1739166803771,5.5245,204.95,204.83,13.41184853]
[1739166804275,5.5245,204.95,204.81,13.41184853]
[1739166804276,20.0,204.92,204.81,13.41184853]
[1739166804453,5.5245,204.95,204.78,3.9065]
[1739166804773,5.5245,204.95,204.76,3.9069]
[1739166804947,20.67930921,204.87,204.8,20.67930921]
[1739166805351,20.67930921,204.86,204.79,20.67930921]
[1739166805571,20.67930921,204.85,204.78,20.67930921]
[1739166805957,20.67930921,204.86,204.79,20.67930921]
[1739166806465,20.67930921,204.85,204.78,20.67930921]
[1739166807353,24.58460921,204.85,204.78,20.67930921]
[1739166807661,20.67930921,204.83,204.76,20.67930921]
[1739166808346,6.102,204.85,204.79,20.67930921]
[1739166808550,30.68660921,204.85,204.78,20.67930921]
[1739166808750,24.58460921,204.85,204.78,20.67930921]
[1739166808979,24.58500921,204.83,204.76,20.67930921]
[1739166809457,20.67930921,204.8,204.73,20.67930921]
[1739166809774,20.67930921,204.79,204.71,20.67930921]
[1739166809969,20.67930921,204.79,204.7,20.67930921]
[1739166809970,20.67930921,204.77,204.7,20.67930921]
[1739166810277,3.9057,204.83,204.75,20.67930921]
[1739166810477,20.67930921,204.82,204.75,20.67930921]
[1739166810677,20.67930921,204.79,204.72,20.67930921]
[1739166810867,20.0,204.8,204.65,10.2414]
[1739166811176,3.9064,204.79,204.69,20.67930921]
[1739166811370,20.67930921,204.79,204.72,20.67930921]
[1739166811758,20.67930921,204.79,204.71,20.67930921]
[1739166811966,23.9063,204.8,204.71,20.67930921]
[1739166811967,20.67930921,204.78,204.71,20.67930921]
[1739166812152,20.0,204.75,204.71,20.67930921]
[1739166812350,20.67930921,204.72,204.61,20.67930921]
[1739166812578,20.67930921,204.69,204.61,20.67930921]
[1739166813373,20.67930921,204.67,204.59,20.67930921]
[1739166813578,3.9084,204.69,204.61,20.67930921]
[1739166813579,20.67930921,204.69,204.61,20.67930921]
[1739166813880,24.58730921,204.71,204.63,20.67930921]
[1739166814878,20.67930921,204.69,204.61,20.67930921]
[1739166815079,20.67930921,204.7,204.63,20.67930921]
[1739166815381,4.18,204.76,204.66,20.67930921]
[1739166815382,20.67930921,204.74,204.66,20.67930921]
[1739166815679,24.58630921,204.76,204.68,20.67930921]
[1739166815887,24.58630921,204.76,204.69,20.67930921]
[1739166816181,24.58630921,204.76,204.68,20.67930921]
[1739166816868,20.67930921,204.78,204.7,20.67930921]
[1739166817068,6.102,204.88,204.7,20.67930921]
[1739166817069,20.67930921,204.83,204.76,20.67930921]
[1739166817452,24.58500921,204.83,204.76,20.67930921]
[1739166817852,24.58500921,204.83,204.74,20.67930921]
[1739166818869,24.58500921,204.83,204.76,20.67930921]
[1739166818870,20.67930921,204.83,204.76,20.67930921]
[1739166819080,6.102,204.88,204.8,20.67930921]
[1739166819264,10.0067,204.88,204.8,20.67930921]
[1739166819464,20.67930921,204.87,204.78,20.67930921]
[1739166820488,24.58420921,204.87,204.78,20.67930921]
[1739166820975,20.67930921,204.85,204.76,20.67930921]
[1739166821293,20.67930921,204.83,204.74,20.67930921]
[1739166821463,20.67930921,204.81,204.72,20.67930921]
[1739166821994,20.67930921,204.81,204.72,24.58700921]
[1739166822562,20.67930921,204.81,204.74,20.67930921]
[1739166822790,24.58540921,204.81,204.72,20.67930921]
[1739166823360,20.67930921,204.78,204.7,20.67930921]
[1739166823859,20.67930921,204.78,204.71,20.67930921]
[1739166824061,40.67930921,204.74,204.67,20.74230921]
[1739166824263,8.217,204.76,204.67,0.063]
[1739166824264,20.67930921,204.68,204.67,0.063]
[1739166824468,20.67930921,204.72,204.67,0.063]
[1739166824669,20.67930921,204.74,204.67,20.74230921]
[1739166824879,6.6612,204.76,204.67,0.063]
[1739166825371,4.22,204.77,204.71,20.67930921]
[1739166825571,20.67930921,204.8,204.73,20.67930921]
[1739166825782,9.7924,204.87,204.79,20.67930921]
[1739166825783,0.03,204.87,204.79,20.67930921]
[1739166825984,0.03,204.87,204.82,20.67930921]
[1739166826669,0.03,204.87,204.82,24.58510921]
[1739166827074,0.03,204.87,204.82,20.67930921]
[1739166828689,0.03,204.87,204.84,20.67930921]
[1739166828888,0.03,204.87,204.82,24.58510921]
[1739166829469,20.67930921,204.85,204.77,20.67930921]
[1739166830586,20.67930921,204.83,204.75,20.67930921]
[1739166831779,24.58510921,204.83,204.75,20.67930921]
[1739166832176,20.67930921,204.81,204.73,20.67930921]
[1739166832780,20.67930921,204.79,204.71,20.67930921]
[1739166833288,20.67930921,204.77,204.69,20.67930921]
[1739166833674,24.58620921,204.77,204.69,20.67930921]
[1739166834420,20.67930921,204.76,204.68,20.67930921]
[1739166834696,20.67930921,204.78,204.7,20.67930921]
[1739166835285,20.67930921,204.8,204.72,20.67930921]
[1739166835608,20.67930921,204.8,204.74,20.67930921]
[1739166835979,24.58560921,204.8,204.72,20.67930921]
[1739166836290,20.67930921,204.78,204.7,24.58730921]
[1739166836698,20.67930921,204.78,204.7,20.67930921]
[1739166837099,3.9063,204.8,204.67,0.063]
[1739166837100,20.67930921,204.8,204.72,20.67930921]
[1739166837399,20.67930921,204.79,204.71,20.67930921]
[1739166837875,20.67930921,204.77,204.7,20.67930921]
[1739166838292,20.67930921,204.79,204.72,20.67930921]
[1739166838594,20.67930921,204.81,204.74,20.67930921]
[1739166839893,20.67930921,204.78,204.71,20.67930921]
[1739166840399,20.67930921,204.76,204.69,20.67930921]
[1739166841189,20.67930921,204.78,204.69,20.67930921]
[1739166841881,24.58590921,204.78,204.69,24.58740921]
[1739166842905,20.67930921,204.78,204.71,20.67930921]
[1739166843088,20.67930921,204.82,204.73,20.67930921]
[1739166843700,20.67930921,204.78,204.69,24.58740921]
[1739166843913,20.67930921,204.76,204.69,24.58740921]
[1739166844114,20.67930921,204.73,204.67,0.063]
[1739166844436,20.67930921,204.72,204.67,0.063]
[1739166845304,20.67930921,204.7,204.67,0.063]
[1739166845604,20.67930921,204.69,204.67,0.063]
[1739166846008,20.67930921,204.7,204.67,0.063]
[1739166846315,20.67930921,204.71,204.67,0.063]
[1739166846618,20.67930921,204.73,204.67,0.063]
[1739166846800,20.67930921,204.74,204.67,20.74230921]
[1739166847006,20.67930921,204.76,204.69,20.67930921]
[1739166847699,20.67930921,204.75,204.68,20.67930921]
[1739166847903,20.67930921,204.75,204.67,24.65100921]
[1739166848094,20.67930921,204.73,204.67,3.9717]
[1739166848291,20.67930921,204.74,204.67,3.9717]
[1739166848493,20.67930921,204.73,204.67,0.063]
[1739166848807,20.67930921,204.73,204.67,3.9716]
[1739166848991,20.67930921,204.74,204.67,3.9716]
[1739166849192,20.67930921,204.73,204.67,0.063]
[1739166849431,20.67930921,204.71,204.67,0.063]
[1739166849615,3.9068,204.77,204.67,0.063]
[1739166849616,20.67930921,204.7,204.67,0.063]
[1739166849995,13.6738,204.77,204.67,0.063]
[1739166849996,20.67930921,204.72,204.67,0.063]
[1739166851124,20.67930921,204.71,204.67,0.063]
[1739166851500,20.67930921,204.7,204.67,0.063]
[1739166851729,3.9077,204.72,204.67,0.063]
[1739166851730,20.67930921,204.68,204.67,0.063]
[1739166852318,20.67930921,204.69,204.67,0.063]
[1739166852516,20.67930921,204.72,204.67,0.063]
[1739166852723,4.2,204.73,204.67,0.063]
[1739166853025,20.67930921,204.77,204.69,20.67930921]
[1739166853225,20.67930921,204.77,204.69,24.58740921]
[1739166853426,3.9367,204.78,204.69,24.58740921]
[1739166853427,0.03,204.78,204.71,20.67930921]
[1739166853802,0.03,204.78,204.72,20.67930921]
[1739166854220,20.67930921,204.77,204.7,20.67930921]
[1739166854617,20.67930921,204.76,204.69,24.58740921]
[1739166854996,20.67930921,204.77,204.7,20.67930921]
[1739166855433,0.03,204.78,204.72,20.67930921]
[1739166855602,0.03,204.78,204.73,20.67930921]
[1739166855924,0.03,204.78,204.72,20.67930921]
[1739166856504,0.03,204.78,204.71,20.67930921]
[1739166856701,0.03,204.78,204.73,20.67930921]
[1739166857904,0.03,204.87,204.78,0.25098]
[1739166858098,0.03,204.87,204.83,20.67930921]
[1739166858304,0.03,204.87,204.76,0.25098]
[1739166858305,0.03,204.87,204.81,20.67930921]
[1739166858608,0.03,204.87,204.74,20.67930921]
[1739166858802,20.67930921,204.82,204.74,20.67930921]
[1739166859001,20.67930921,204.83,204.75,20.67930921]
[1739166859207,20.67930921,204.83,204.76,20.67930921]
[1739166859535,20.67930921,204.83,204.74,13.41184853]
[1739166859706,3.9349,204.87,204.71,24.58720921]
[1739166859707,20.67930921,204.79,204.71,24.58720921]
[1739166859905,20.67930921,204.79,204.69,6.3251]
[1739166859906,6.0381,204.78,204.73,0.063]
[1739166860108,6.0681,204.78,204.73,0.063]
[1739166860523,20.0,204.75,204.73,0.063]
[1739166860922,20.67930921,204.74,204.73,0.063]
[1739166861807,24.58660921,204.74,204.73,0.063]
[1739166862007,20.67930921,204.74,204.73,0.063]
[1739166864532,20.0,204.71,204.67,0.063]
[1739166864736,20.67930921,204.68,204.67,0.063]
[1739166866312,24.58780921,204.68,204.67,0.063]
[1739166874825,1.0,204.64,204.62,0.063]
[1739166875029,41.35861842,204.63,204.62,0.063]
[1739166875967,41.35861842,204.63,204.54,0.063]
[1739166876136,20.67930921,204.55,204.54,0.063]
[1739166876564,20.67930921,204.56,204.54,0.063]
[1739166876869,20.67930921,204.57,204.54,0.063]
[1739166877068,9.7721,204.67,204.54,0.063]
[1739166877069,20.67930921,204.6,204.54,0.063]
[1739166877456,20.67930921,204.59,204.54,0.063]
[1739166877656,20.67930921,204.62,204.54,20.74230921]
[1739166877959,20.67930921,204.63,204.56,20.67930921]
[1739166878339,20.67930921,204.62,204.57,3.9106]
[1739166878739,20.67930921,204.6,204.55,3.9108]
[1739166879487,20.67930921,204.58,204.54,0.063]
[1739166879951,20.67930921,204.55,204.54,0.063]
[1739166881645,20.67930921,204.56,204.54,0.063]
[1739166882053,20.67930921,204.57,204.54,0.063]
[1739166882557,20.67930921,204.56,204.54,0.063]
[1739166883266,20.67930921,204.57,204.54,0.063]
[1739166883561,20.67930921,204.56,204.54,0.063]
[1739166885862,24.59010921,204.56,204.54,0.063]
[1739166886163,20.67930921,204.56,204.54,0.063]
[1739166886372,20.67930921,204.55,204.54,0.063]
[1739166887471,20.67930921,204.56,204.54,0.063]
[1739166890366,20.67930921,204.55,204.54,0.063]
[1739166891479,20.67930921,204.67,204.57,0.25098]
[1739166891647,20.67930921,204.69,204.59,20.67930921]
[1739166891853,24.58720921,204.71,204.62,13.41184853]
[1739166892065,20.67930921,204.67,204.59,20.67930921]
[1739166892772,20.67930921,204.67,204.6,13.41184853]